{"text_format":"1","workbook":"xlsx","n_sheets":6,"sheets":["Home","Rødder","Frø","Planter","Frugter","Nødder"],"not_rendered":{"charts":0,"images":5,"macros":1,"external_links":0,"defined_names":0,"comments":0,"pivot_tables":0},"unopened":[],"bounds":{"document_bytes":16777216,"sheet_cells":100000,"rows_first":2000,"rows_last":500,"rows_between":2000,"halvings":0,"cell_chars":16384,"cell_head_chars":4096},"cells_cut":0,"cells_raw":0,"read":"whole","date_system":"1900"}

{"sheet":"Home","index":0,"n_rows":40,"n_cols":18,"rows_kept":40,"cut":false,"hidden":false,"merged":[[19,2,19,9],[39,3,39,9],[30,11,30,15],[5,11,5,15],[6,11,6,15],[38,11,38,15],[19,17,19,22],[39,17,39,23],[7,11,7,15],[1,11,1,14],[3,10,3,16],[35,11,35,15],[36,11,36,15],[37,11,37,15],[39,11,39,15]]}
[" "]
[null,null,null,null,null,null,null,null,null,null,null,"Et udvalg af:"]
[]
[null,null,null,null,null,null,null,null,null,null,"Rødder - Frø - Planter - Frugter - Nødder"]
[]
[null,null,null,null,null,null,null,null,null,null,null,"Denne side indeholder Makroer. Klik på et billede"]
[null,null,null,null,null,null,null,null,null,null,null,"så kommer du til den aktuelle side"]
[null,null,null,null,null,null,null,null,null,null,null,"Husk at aktiver Makro indholdet"]
[]
[]
[]
[]
[]
[]
[]
[]
[]
[]
[]
[null,null,"Lakridsrod Stænger  Makro klik på billedet",null,null,null,null,null,null,null,null,null,null,null,null,null,null,"Dild Frø Makro klik på billedet"]
[]
[]
[]
[]
[]
[]
[]
[]
[]
[]
[null,null,null,null,null,null,null,null,null,null,null,"Røllike Plante Makro klik på billedet"]
[]
[]
[]
[]
[null,null,null,null,null,null,null,null,null,null,null,"Udarbejdet af Jørgen Walter ©"]
[]
[null,null,null,null,null,null,null,null,null,null,null,"www.bmw-snapselaug.dk "]
[]
[null,null,null,"Appelsin Frugt Makro klik på billedet",null,null,null,null,null,null,null,"COPYRIGHT © 2017",null,null,null,null,null,"Valnødder Grønne Makro klik på billedet"]

{"sheet":"Rødder","index":1,"n_rows":60,"n_cols":8,"rows_kept":60,"cut":false,"hidden":false,"merged":[[1,1,1,7],[53,3,53,7],[53,1,53,2],[1,8,53,8]]}
[]
[null,"Krydderurte udtræk til essenser lavet på rødder / bark og 250 ml alkohol fra 37,5 % til 40 % vol."]
[null,"Nr.","Navn: Dansk og Latinsk","Antal gram","Trækketid","Fortynding af essensen","Bemærkninger","Web Site"]
[null,1,"Althearod skåret - Althaéa officinális",20,"8 uger",null,"Kendt for smagen i altheabolsjer. Sød smag","https://www.helsebixen.dk/shop/natur-drogeriet-althearod-100-gr.html "]
[null,2,"Angelikarod - Angélica archangélica",20,"8 uger",null,"Æteriske olier, stærk aromatisk duft og smag","https://www.helsebixen.dk/shop/angelikarod-100-gr.html "]
[null,3,"Angosturabark - Cusparia angustura",20,"8 uger",null,"Leder efter forhandler"]
[null,4,"Baldrianrod lægebaldrian  skåret - Valeriána officinális",20,"8 uger",null,"En beroligende virkning","https://www.helsebixen.dk/shop/baldrianrod-100-gr-5956p.html "]
[null,5,"Burrerod skåret - Arctium lappa",20,"8 uger",null,null,"https://www.helsebixen.dk/shop/burrerod-100-gr-5970p.html "]
[null,6,"Egespåner, Amerikansk ikke ristet",50,"12 mdr.","Efter behag",null,"http://shop.vinolhobby.dk/product/amerikanske-egespaaner-til-whisky-50-g-313/ "]
[null,7,"Egespåner, Fransk ristet",50,"12 mdr.","Efter behag",null,"http://shop.vinolhobby.dk/product/franske-egespaaner-kraftigt-ristet-50-g-312/ "]
[null,8,"Ensianrod skåret - Gentiana lutea",20,"8 uger",null,"Anvendes som en bittertonikum: snaps eller te","https://www.helsebixen.dk/shop/natur-drogeriet-ensianrod-skaret-100-gr.html "]
[null,9,"Galangarod skåret - Alpínia officinárum",20,"8 uger",null,null,"https://www.helsebixen.dk/shop/naturdrogeriet-galangarod-1000-gr.html "]
[null,10,"Ginsengrod - Panax ginseng",20,"8 uger",null,"Dyrt krydderi - Leder efter forhandler"]
[null,11,"Gurkemejerod knust - Cúrcuma lónga",20,"8 uger",null,"Farver gult","https://www.helsebixen.dk/shop/natur-drogeriet-gurkemeje-knust-100-gr.html "]
[null,12,"Ingefær hel - Zingíber officinále",20,"8 uger",null,"Kraftig smag","https://www.helsebixen.dk/shop/ingefaer-hel-3-4498p.html "]
[null,13,"Kanel hel - Cinnámomum ceylánicum",20,"8 uger",null,null,"https://www.helsebixen.dk/shop/natur-drogeriet-kanel-hel-ceylon.html "]
[null,14,"Kinabark skåret - Cinchona pubescen",20,"8 uger",null,"Anvendes sparsomt i snapse bitter","https://www.helsebixen.dk/shop/natur-drogeriet-kinabark-100-gr.html "]
[null,15,"Lakridsrod skåret - Glycyrrhíza glabra",20,"8 uger",null,null,"https://www.helsebixen.dk/shop/lakridsrod-skaaret-100-3579p.html "]
[null,16,"Løvetandrod (mælkebøtterod) - Taraxacum officinale",20,"8 uger",null,null,"https://www.helsebixen.dk/shop/natur-drogeriet-lovetandsrod-100-gr.html "]
[null,17,"Orris rod - Iris germanica",null,null,null,"En blomst. Bruges i Gin, mad og Parfume. Svært at skaffe i DK","https://en.wikipedia.org/wiki/Orris_root "]
[null,18,"Pimpinellerod skåret - Pimpinella saxifraga",20,"8 uger",null,null,"https://www.helsebixen.dk/shop/naturdrogeriet-pimpinellerod-100-gr.html "]
[null,19,"Rabarberrod - Rhéum palmátum",20,"8 uger",null,"Dyrk dem selv"]
[null,20,"Sandeltræ skåret - Pterocarous Soyauxii",20,"8 uger",null,null,"https://www.helsebixen.dk/shop/sandeltrae-rod-100-gr.html "]
[null,21,"Tormentilrod - Potentílla tormentílla",20,"8 uger",null,null,"https://www.helsebixen.dk/shop/naturdrogeriet-tormentilrod-1000-gr.html "]
[null,22]
[null,23]
[null,24]
[null,25]
[null,26]
[null,27]
[null,28]
[null,29]
[null,30]
[null,31]
[null,32]
[null,33]
[null,34]
[null,35]
[null,36]
[null,37]
[null,38]
[null,39]
[null,40]
[null,41]
[null,42]
[null,43]
[null,44]
[null,45]
[null,46]
[null,47]
[null,48]
[null,49]
[null,50]
[null,{"$f":"COUNTA(C4:C53)","v":21},null,"Antal rødder og bark"]
[]
[null,null,"Udarbejdet af Jørgen Walter ©"]
[]
[null,null,"www.bmw-snapselaug.dk "]
[]
[null,null,"COPYRIGHT © 2017"]

{"sheet":"Frø","index":2,"n_rows":60,"n_cols":8,"rows_kept":60,"cut":false,"hidden":false,"merged":[[1,1,1,7],[53,1,53,2],[53,3,53,7],[1,8,53,8]]}
[]
[null,"Krydderurte udtræk til essenser lavet på frø og 250 ml alkohol fra 37,5 % til 40 % vol."]
[null,{"$f":"+Rødder!B3","v":"Nr."},{"$f":"+Rødder!C3","v":"Navn: Dansk og Latinsk"},{"$f":"+Rødder!D3","v":"Antal gram"},{"$f":"+Rødder!E3","v":"Trækketid"},{"$f":"+Rødder!F3","v":"Fortynding af essensen"},{"$f":"+Rødder!G3","v":"Bemærkninger"},{"$f":"+Rødder!H3","v":"Web Site"}]
[null,1,"Allehånde hel - Piménta dióica",10,"8 uger",null,"Smag af peber. Anvendes med: Nellike, kanel og muskat","https://www.helsebixen.dk/shop/allehaande-hel-100-4517p.html "]
[null,2,"Anis hel - Pimpinélla anísum",10,"8 uger",null,"Lakrids- og nøddesmag","https://www.helsebixen.dk/shop/anis-hel-100-gr.html "]
[null,3,"Dildfrø - Anéthum gravéolens",10,"8 uger",null,"Dildsnaps til fisk","https://www.helsebixen.dk/shop/dildfro-100-gr.html "]
[null,4,"Enebær hel - Juníperus commúnis",20,"4 til 8 uger",null,"Pluk selv - KUN de sorte bær (kedder kogler)","https://www.helsebixen.dk/shop/enebaer-hele-3-5975p.html "]
[null,5,"Fennikelfrø - Foenículum vulgáre",10,"8 uger",null,"Har anis smag","https://www.helsebixen.dk/shop/fennikel-hel-180-5978p.html "]
[null,6,"Kardemomme hel - Elettária cardamómum",10,"8 uger",null,null,"https://www.helsebixen.dk/shop/kardemomme-hel-groen-3475p.html "]
[null,7,"Kommen hel - Cárum cárvi",10,"8 uger",null,"Krydderi til snaps - ost - rødbeder","https://www.helsebixen.dk/shop/kommen-hel-100-6012p.html "]
[null,8,"Koriander - Coriándrum satívum",10,"8 uger",null,null,"https://www.helsebixen.dk/shop/koriander-hel-80-6015p.html "]
[null,9,"Mandel - Prunus dulcis med skral, skåret",50,"8 uger",null,"Køb dem i et supermarked"]
[null,10,"Mandel bitre - ca. 6 stk",5,"8 uger",null,"Giftig ved stor indtagelse. Bruges i marcipan","http://fruhurup.dk/krydderier-69/bitre-mandler-2978.html "]
[null,11,"Marietidselfrø hel - Silybum marianum",10,"8 uger",null,"Skulle være godt for helbredet - sænker kolesterol","https://helseudsalg.dk/shop/marietidsel-hel-100-546p.html "]
[null,12,"Marietidselfrø knust - Silybum marianum",10,"8 uger",null,"Skulle være godt for helbredet - sænker kolesterol","https://www.helsebixen.dk/shop/marietidsel-knust-o-m-aftagelig-etiket.html "]
[null,13,"Muskatnød hel - Myrística frágans",20,"8 uger",null,null,"https://www.helsebixen.dk/shop/muskatnoed-hel-3-6041p.html "]
[null,14,"Nellike - Syzygium aromáticum L.",10,"8 uger",null,null,"https://www.helsebixen.dk/shop/naturdrogeriet-nelliker-hele-o-100-gr.html "]
[null,15,"Peber grøn hel - Píper nigrum",10,"8 uger",null,"Madagascar peber umoden og behandlet","https://www.helsebixen.dk/shop/peber-gron-hel-90-gr.html "]
[null,16,"Peber hvid hel - Píper nigrum",10,"8 uger",null,"Modne afskallede peberfrugt","https://www.helsebixen.dk/shop/peber-hvid-hel-6058p.html "]
[null,17,"Peber rosa hel - Schinus therebinthifolius",10,"8 uger",null,"En pebervariant i peberblandinger","https://www.helsebixen.dk/shop/natur-drogeriet-peber-rosa-hel.html "]
[null,18,"Peber sort hel - Píper nígrum",10,"8 uger",null,"Umodne ikke skallede peberfrugt","https://www.helsebixen.dk/shop/natur-drogeriet-peber-sort-hel-100-gr.html "]
[null,19,"Sennep Gul - Sínapis álba",10,"8 uger",null,"Mild aromatisk smag","https://www.helsebixen.dk/shop/sennepsfroe-gul-oe-1838p.html "]
[null,20,"Stjerneanis - Illícium vérum 10 stk.",10,"8 uger",null,null,"https://www.helsebixen.dk/shop/stjerneanis-hel-50-6077p.html "]
[null,21,"Tonkabønner - Dipteryx odorata 15 stk.",10,"8 uger",null,"Købes hos Fru Hurup. Bønner trukker i Rom","http://fruhurup.dk/krydderier-69/tonkaboenner-2994.html "]
[null,22,"Vanilje - Vanilla 4 stk.",16,"8 uger",null,"Køb dem i et supermarked"]
[null,23]
[null,24]
[null,25]
[null,26]
[null,27]
[null,28]
[null,29]
[null,30]
[null,31]
[null,32]
[null,33]
[null,34]
[null,35]
[null,36]
[null,37]
[null,38]
[null,39]
[null,40]
[null,41]
[null,42]
[null,43]
[null,44]
[null,45]
[null,46]
[null,47]
[null,48]
[null,49]
[null,50]
[null,{"$f":"COUNTA(C4:C53)","v":22},null,"Antal frø"]
[]
[null,null,"Udarbejdet af Jørgen Walter ©"]
[]
[null,null,"www.bmw-snapselaug.dk "]
[]
[null,null,"COPYRIGHT © 2017"]

{"sheet":"Planter","index":3,"n_rows":60,"n_cols":8,"rows_kept":60,"cut":false,"hidden":false,"merged":[[1,1,1,7],[53,1,53,2],[53,3,53,7],[1,8,53,8]]}
[]
[null,"Krydderurte udtræk til essenser lavet på planter / blomster og 250 ml alkohol fra 37,5 % til 40 % vol."]
[null,{"$f":"+Rødder!B3","v":"Nr."},{"$f":"+Rødder!C3","v":"Navn: Dansk og Latinsk"},{"$f":"+Rødder!D3","v":"Antal gram"},{"$f":"+Rødder!E3","v":"Trækketid"},{"$f":"+Rødder!F3","v":"Fortynding af essensen"},{"$f":"+Rødder!G3","v":"Bemærkninger"},{"$f":"+Rødder!H3","v":"Web Site"}]
[null,1,"Agermåne tørret- Agrimonia eupatoria",10,"2 uger",null,null,"https://www.helsebixen.dk/shop/naturdrogeriet-agermane-f6-f8-125-gr.html "]
[null,2,"Aloe vera juice - Aloe barbadensis",10,"Juice",null,"Købes som juice","https://www.helsebixen.dk/shop/aloe-vera-juice-7372p.html "]
[null,3,"Birkeblade tørrede - Betúla pendula",10,"2 uger",null,null,"https://www.helsebixen.dk/shop/toerrede-birkeblade-80-6083p.html "]
[null,4,"Brændenælde tørret - Urtica dioica",10,"2 uger",null,null,"https://www.helsebixen.dk/shop/braendenaelde-oe-150-5963p.html "]
[null,5,"Bynke Grå - Artemisia vulgaris",10,"3 - 5 dage",null,"Smag efter hver 24 timer","https://www.helsebixen.dk/shop/bynke-gra-100-gr.html "]
[null,6,"Cikorierod tørret - Cichorium intybus ",10,"2 uger",null,"Kaffesmag","https://www.helsebixen.dk/shop/natur-drogeriet-cikorierod-100-gr.html "]
[null,7,"Citronmelisse* - Melissa officinalis",10,"2 uger",null,"Dyrk det selv i haven"]
[null,8,"Dild frisk - ",10,"2 uger",null,"Dyrk det selv i haven"]
[null,9,"Hasselrakler - ",20,"2 mdr.",null,"Pluk dem selv i hegn medio april"]
[null,10,"Hibiscus hel - Hibiscus sabdariffa",10,"2 uger",null,"Syrligt og rødt farvestof","https://www.helsebixen.dk/shop/hibiscus-hel-125-5987p.html "]
[null,11,"Hjertensfryd Melisse* - Melíssa officinális",10,"2 uger",null,null,"https://www.helsebixen.dk/shop/natur-drogeriet-hjertensfryd-60-gr.html "]
[null,12,"Humle - Húmulus lúpulus",10,"2 uger",null,null,"https://www.helsebixen.dk/shop/humle-75-gr-5990p.html "]
[null,13,"Hyldeblomst - Sambucus nigra, friske",20,"1 mdr.",null,"Pluk dem selv i hegn. Brug friske","https://www.helsebixen.dk/shop/hyldeblomst-125-gr-5992p.html "]
[null,14,"Isop - Hýssopus officinális",10,"2 uger",null,null,"https://www.helsebixen.dk/shop/natur-drogeriet-isop-100-gr.html "]
[null,15,"Jasminblomst - Jasminum officinale",10,"2 uger",null,"Bruges meget i te","https://www.helsebixen.dk/shop/natur-drogeriet-jasminblomst-50-gr.html "]
[null,16,"Jernurt alm. Skåret - Verbena officinalis",5,"1 uge",null,"Bitter med citronsmag","https://www.helsebixen.dk/shop/natur-drogeriet-jernurt-alm-skaret-100-gr.html "]
[null,17,"Kamille blomst - Matricária chamomílla",10,"2 uger",null,null,"https://www.helsebixen.dk/shop/kamilleblomst-80-gr-5999p.html "]
[null,18,"Kulsukkerrod tørret - Sýmphytum officinále",null,null,null,"Må ikke forhandles i Danmark til indtagelse","https://www.helsebixen.dk/shop/kulsukkerrod-2-100-6022p.html "]
[null,19,"Kvan blade - Angelica archangelica",5,"2 uger",null,"Må samles selv - eller købes her på denne web site","https://www.kvannkompagniet.dk/product-page/angelica-blade "]
[null,20,"Lavendelblomst tørret - Lavándula officinális",10,"2 uger",null,null,"https://www.helsebixen.dk/shop/lavendelblomst-blaa-70-6026p.html "]
[null,21,"Lemongræs tørret - Cymbopógen citrátus",10,"2 uger",null,"Udpræget citronsmag og lidt sødt","https://www.helsebixen.dk/shop/lemongraes-100-gr-6027p.html "]
[null,22,"Lyngblomst tørret - Calluna vulgaris",10,"2 uger",null,"Lynghonningsmag dog ikke sødt","https://www.helsebixen.dk/shop/natur-drogeriet-lyngblomst-90-gr.html "]
[null,23,"Løvetand (mælkebøtte) - Taráxacum officinále",10,"2 uger",null,null,"https://www.helsebixen.dk/shop/loevetand-100-gr-6033p.html "]
[null,24,"Malurt have - Artemisia absinthium",5,"1 - 2 døgn",null,"Smag efter hver 24 timer","https://www.helsebixen.dk/shop/malurt-1-130-6034p.html "]
[null,25,"Malurt Pontisk - Artemisia pontica",5,"1 - 2 døgn",null,"Smag efter hver 24 timer"]
[null,26,"Malurt strand - Artemisia maritima",5,"1 - 2 døgn",null,"Smag efter hver 24 timer","http://netbutik.fuglebjerggaard.dk/?s=strandmalurt&post_type=product "]
[null,27,"Marietidsel almindelig - Silybum marianum",10,"2 uger",null,"Frø er bedst","https://www.helsebixen.dk/shop/marietidsel-knust-100-6036p.html "]
[null,28,"Mate - Ílex paraguariénsis",10,"2 uger",null,"Kaffesmag","https://www.helsebixen.dk/shop/mate-70-gr-6037p.html "]
[null,29,"Mjødurtblomst - Filipendula ulmaria",10,"2 uger",null,"Bruges til ølbrygning , mjød, vin og snaps","https://www.helsebixen.dk/shop/mjoedurt-100-gr-9968p.html "]
[null,30,"Oregano - Oríganum vulgáre var. Créticum",10,"2 uger",null,"Kaldes også for spansk humle","https://www.helsebixen.dk/shop/oregano-cretia-spansk-6045p.html "]
[null,31,"Passionsblomst - Passiflora incarnata",20,"2 uger",null,"Bruges sammen med baldrianrod","https://www.helsebixen.dk/shop/passionsblomst-100-gr.html "]
[null,32,"Pebermynte - Méntha piperíta",10,"2 uger",null,"God krafig smag af pebermynte","https://www.helsebixen.dk/shop/myntethe-afrikansk-50-4887p.html "]
[null,33,"Perikon prikbladet - Hypéricum perforátum",10,"2 uger",null,"Rubinrød farve - let bitteragtig smag - god til snaps","https://www.helsebixen.dk/shop/perikon-60-gr-6064p.html "]
[null,34,"Pors mose - Myrica gale",10,"2 uger",null,"Krydderi til snaps og øl - i stedet for humle - let bitter","https://da.wikipedia.org/wiki/Mosepors "]
[null,35,"Rejnfan - Tanacetum vulgare",5,"1 uge",null,"Lugter stærkt krydret - thujon giftig i stor mængde","https://da.wikipedia.org/wiki/Rejnfan "]
[null,36,"Revling -",20,"6  til 12 mdr.",null,"Pluk modne revling, lufttørres, skal eftermodne lang tid"]
[null,37,"Rødkløverblomst skåret - Trifolium pratense",10,"2 uger",null,"Bruges tørret i te - god til kvinder i overgangsalderen","https://www.helsebixen.dk/shop/roedkloeverblomst-skaaret-4499p.html "]
[null,38,"Røllike almindelig - Achilléa millefólium",10,"2 uger",null,"God til snaps og ølbrygning - æterisk olie kamfer m.m","https://www.helsebixen.dk/shop/roellike-1-100-6069p.html "]
[null,39,"Safrantråde - Crócus satívus = 2 poser",1,"2 uger",null,"Dyrt krydderi som også farver gult/orange","https://www.helsebixen.dk/shop/safran-aegte-hel-3483p.html "]
[null,40,"Snerre gul - Galium verum",10,"1 uge",null,"Kan bruges i stedet for osteløbe ved ostefremstilling","https://www.helsebixen.dk/shop/natur-drogeriet-snerre-gul-100-gr.html "]
[null,41,"Timian have - Thymus",10,"2 uger",null,"Æterisk olie thymol","https://www.helsebixen.dk/shop/timian-have-100-6078p.html "]
[null,42,"Timian vild - Thýmus vulgáris",10,"2 uger",null,"Æterisk olie thymol","https://www.helsebixen.dk/shop/timian-vild-100-6080p.html "]
[null,43,"Artiskokurt - Cynara scalymics",10,"2 uger",null,"Anvendes som en bittertonikum: snaps eller te","https://www.helsebixen.dk/shop/artiskokurt-100-gr.html "]
[null,44]
[null,45]
[null,46]
[null,47]
[null,48]
[null,49]
[null,50]
[null,{"$f":"COUNTA(C4:C53)","v":43},null,"Antal planter"]
[]
[null,null,"Udarbejdet af Jørgen Walter ©"]
[]
[null,null,"www.bmw-snapselaug.dk "]
[]
[null,null,"COPYRIGHT © 2017"]

{"sheet":"Frugter","index":4,"n_rows":60,"n_cols":8,"rows_kept":60,"cut":false,"hidden":false,"merged":[[1,1,1,7],[53,1,53,2],[53,3,53,7],[1,8,53,8]]}
[]
[null,"Krydderurte udtræk til essenser lavet på frugter / bær og 700 ml alkohol fra 37,5 % til 40 % vol."]
[null,{"$f":"+Rødder!B3","v":"Nr."},{"$f":"+Rødder!C3","v":"Navn: Dansk og Latinsk"},{"$f":"+Rødder!D3","v":"Antal gram"},{"$f":"+Rødder!E3","v":"Trækketid"},{"$f":"+Rødder!F3","v":"Fortynding af essensen"},{"$f":"+Rødder!G3","v":"Bemærkninger"},{"$f":"+Rødder!H3","v":"Web Site"}]
[null,1,"Appelsinskaller - Citrus sinensis, friske 4 stk.",100,"3 mdr."]
[null,2,"Aroniabær - Aronia melanocarpa, friske","250 - 300","3 mdr."]
[null,3,"Aroniabær - Aronia melanocarpa, tørrede",100,"3 mdr."]
[null,4,"Bitterorange skal* - Citrus  aurantium, friske 8 stk.",100,"3 mdr.",null,"Bitterorange skal = Pomerans skal"]
[null,5,"Brombær friske -",300,"6 mdr.",null,"Pluk de vilde brombær i de Danske hegn"]
[null,6,"Citronskaller - Citrus limon, friske 4 stk.",100,"3 mdr."]
[null,7,"Clementinskaller - Citrus  aurantium, friske 8 stk.",100,"3 mdr."]
[null,8,"Gojibær tørrede - ",null,null,null,"Ikke prøvet endnu","https://www.helsebixen.dk/shop/biogan-gojibaer-400g.html "]
[null,9,"Havtorn - Hippophaë rhamnoides, friske",250,"3 mdr."]
[null,10,"Hvidtjørnebær friske - Crataegus oxycantha",300,"2 til 3 mdr."]
[null,11,"Hvidtjørnebær tørrede - Crataegus oxycantha",100,"2 til 3 mdr.",null,null,"https://www.helsebixen.dk/shop/natur-drogeriet-hvidtjornbaer-100-gr.html "]
[null,12,"Jalapenos Chili - Capsicum familie, friske 6 stk.",50,"2 mdr."]
[null,13,"Kirsebær sød og sur","200 til 300","5 mdr."]
[null,14,"Klitrose - ",200,"3 til 6 mdr.",null,"Må man selv plukke og tørre. Sort - blå hyben."]
[null,15,"Mandarinskaller - Citrus reticulata, friske 8 stk.",100,"3 mdr.",null,"I mangel af mandarin brug klementin"]
[null,16,"Morbær* - Morus* , tørrede",100,"3 mdr.",null,"Hvid*, Rød* og Sort* - Alba*, Ruba* og Nigra*","https://www.helsebixen.dk/shop/morbaer-rawfood-oe-8433p.html "]
[null,17,"Pomeransskal bitter - Cítrus aurántium amára",100,"2 mdr.",null," Pomerans skal =  Bitterorange skal","https://www.helsebixen.dk/shop/natur-drogeriet-pomeransskal-bitter-skaret-100-gr.html "]
[null,18,"Rosiner tørrede vindruer, - Vitaceae familie",200,"3 mdr.",null,null," "]
[null,19,"Rønnebær friske - Sórbus aucupária",300,"3 mdr.",null,"Fra egen avl"]
[null,20,"Rønnebær tørrede - Sórbus aucupária",100,"3 mdr.",null,null,"https://www.helsebixen.dk/shop/ronnebaer-100-gr.html "]
[null,21,"Slåenbær - Prúnus spinósa, friske",300,"3 til 6 mdr.",null,"Nyt: brug Gin eller Rom i stedet for Vodka. Tilsæt lidt sukker"]
[null,22,"Tranebær friske - Vaccinium oxycoccos, friske",300,"3 mdr.",null,"Skal skæres over midt på inden de kommes i glasset"]
[null,23,"Tranebær tørrede - Vaccinium oxycoccos",200,"3 mdr.",null,"Let syrligt sødet med æblesaft","https://www.helsebixen.dk/shop/cranberries-tranebaer-5349p.html "]
[null,24]
[null,25]
[null,26]
[null,27]
[null,28]
[null,29]
[null,30]
[null,31]
[null,32]
[null,33]
[null,34]
[null,35]
[null,36]
[null,37]
[null,38]
[null,39]
[null,40]
[null,41]
[null,42]
[null,43]
[null,44]
[null,45]
[null,46]
[null,47]
[null,48]
[null,49]
[null,50]
[null,{"$f":"COUNTA(C4:C53)","v":23},null,"Antal frugter"]
[]
[null,null,"Udarbejdet af Jørgen Walter ©"]
[]
[null,null,"www.bmw-snapselaug.dk "]
[]
[null,null,"COPYRIGHT © 2017"]

{"sheet":"Nødder","index":5,"n_rows":60,"n_cols":8,"rows_kept":60,"cut":false,"hidden":false,"merged":[[1,1,1,7],[53,1,53,2],[53,3,53,7],[1,8,53,8]]}
[]
[null,"Krydderurte udtræk til essenser lavet på nødder og 700 ml alkohol fra 37,5 % til 40 % vol."]
[null,{"$f":"+Rødder!B3","v":"Nr."},{"$f":"+Rødder!C3","v":"Navn: Dansk og Latinsk"},{"$f":"+Rødder!D3","v":"Antal gram"},{"$f":"+Rødder!E3","v":"Trækketid"},{"$f":"+Rødder!F3","v":"Fortynding af essensen"},{"$f":"+Rødder!G3","v":"Bemærkninger"},{"$f":"+Rødder!H3","v":"Web Site"}]
[null,1,"Valnød - Juglans regia, umodne, grønne og friske","8 stk.","4 til 6 mdr.","Efter behag","Skæres i kvarte, glasset fyldes med alkohol til det dækker","https://en.wikipedia.org/wiki/Juglans_regia "]
[null,2,"Valnød - Juglans regia, modne, brune og tørrede",200,"6 til 12 mdr.","Efter behag","Knækkes, glasset fyldes med alkohol til det dækker","https://da.wikipedia.org/wiki/Valn%C3%B8d_(tr%C3%A6) "]
[null,3,"Hasselnød - Corylus, umodne, grønne og friske","Fyldt glas","4 til 6 mdr.","Efter behag","Skæres i kvarte, glasset fyldes med alkohol til det dækker","https://en.wikipedia.org/wiki/Hazelnut "]
[null,4,"Hasselød -Corylus, modne, brune og tørrede",250,"6 til 12 mdr.","Efter behag","Knækkes, glasset fyldes med alkohol til det dækker","https://da.wikipedia.org/wiki/Hasseln%C3%B8d "]
[null,5]
[null,6]
[null,7]
[null,8]
[null,9]
[null,10]
[null,11]
[null,12]
[null,13]
[null,14]
[null,15]
[null,16]
[null,17]
[null,18]
[null,19]
[null,20]
[null,21]
[null,22]
[null,23]
[null,24]
[null,25]
[null,26]
[null,27]
[null,28]
[null,29]
[null,30]
[null,31]
[null,32]
[null,33]
[null,34]
[null,35]
[null,36]
[null,37]
[null,38]
[null,39]
[null,40]
[null,41]
[null,42]
[null,43]
[null,44]
[null,45]
[null,46]
[null,47]
[null,48]
[null,49]
[null,50]
[null,{"$f":"COUNTA(C4:C53)","v":4},null,"Antal frugter"]
[]
[null,null,"Udarbejdet af Jørgen Walter ©"]
[]
[null,null,"www.bmw-snapselaug.dk "]
[]
[null,null,"COPYRIGHT © 2017"]